[Event "*** Titled Tuesday Blitz"]
[Site "Chess.com"]
[Date "2021.03.30"]
[Round "3"]
[White "Alexander_Zubov"]
[Black "Reader777"]
[Result "0-1"]
[WhiteElo "2975"]
[BlackElo "2721"]
[TimeControl "180+1"]
[EndTime "10:29:15 PDT"]
[Termination "Reader777 won on time"]

1. e4 {[%clk 0:03:00.9]} 1... c5 {[%clk 0:02:59.7]} 2. Nf3 {[%clk 0:03:00.6]}
2... d6 {[%clk 0:02:59.5]} 3. Bb5+ {[%clk 0:02:57.5]} 3... Bd7 {[%clk 0:02:59]}
4. Bxd7+ {[%clk 0:02:57.1]} 4... Qxd7 {[%clk 0:02:59.5]} 5. O-O {[%clk
0:02:56.6]} 5... Nc6 {[%clk 0:02:59.4]} 6. c3 {[%clk 0:02:56.3]} 6... Nf6 {[%clk
0:02:59.5]} 7. Re1 {[%clk 0:02:56.3]} 7... e6 {[%clk 0:02:59.6]} 8. d4 {[%clk
0:02:55.8]} 8... cxd4 {[%clk 0:02:59.9]} 9. cxd4 {[%clk 0:02:56.7]} 9... d5
{[%clk 0:03:00.5]} 10. e5 {[%clk 0:02:56.1]} 10... Ne4 {[%clk 0:03:01]} 11. a3
{[%clk 0:02:48.7]} 11... Be7 {[%clk 0:02:59.7]} 12. Nbd2 {[%clk 0:02:47.3]}
12... Nxd2 {[%clk 0:02:58.5]} 13. Bxd2 {[%clk 0:02:47.6]} 13... O-O {[%clk
0:02:58.4]} 14. h4 {[%clk 0:02:44.8]} 14... Rac8 {[%clk 0:02:55.6]} 15. h5
{[%clk 0:02:44.4]} 15... h6 {[%clk 0:02:54.2]} 16. Qb3 {[%clk 0:02:28.9]} 16...
Bd8 {[%clk 0:02:47.9]} 17. Qd3 {[%clk 0:02:16.8]} 17... a6 {[%clk 0:02:42.1]}
18. g3 {[%clk 0:02:04.8]} 18... Ne7 {[%clk 0:02:36.3]} 19. Bb4 {[%clk
0:01:57.9]} 19... Re8 {[%clk 0:02:34.7]} 20. Kg2 {[%clk 0:01:48.4]} 20... Qb5
{[%clk 0:02:13.5]} 21. Qxb5 {[%clk 0:01:44.4]} 21... axb5 {[%clk 0:02:13.2]} 22.
Rec1 {[%clk 0:01:41.9]} 22... Rc6 {[%clk 0:01:27.6]} 23. Rc5 {[%clk 0:01:18.7]}
23... Rxc5 {[%clk 0:01:24.6]} 24. Bxc5 {[%clk 0:01:17.8]} 24... Nc6 {[%clk
0:01:23.9]} 25. Rd1 {[%clk 0:01:16.2]} 25... Bc7 {[%clk 0:01:10.6]} 26. Rc1
{[%clk 0:01:09]} 26... Rc8 {[%clk 0:01:10.3]} 27. Rc3 {[%clk 0:01:05.3]} 27...
b6 {[%clk 0:00:42.7]} 28. Bd6 {[%clk 0:01:03.8]} 28... Bd8 {[%clk 0:00:40.6]}
29. Kf1 {[%clk 0:00:50.4]} 29... f6 {[%clk 0:00:38.5]} 30. Ke2 {[%clk
0:00:48.9]} 30... Kf7 {[%clk 0:00:37.9]} 31. Kd3 {[%clk 0:00:48]} 31... Na7
{[%clk 0:00:34.5]} 32. Rb3 {[%clk 0:00:42.9]} 32... Be7 {[%clk 0:00:31.9]} 33.
Bxe7 {[%clk 0:00:40.7]} 33... Kxe7 {[%clk 0:00:32.8]} 34. Nh4 {[%clk 0:00:32.9]}
34... Rc4 {[%clk 0:00:28.7]} 35. Ng6+ {[%clk 0:00:31.1]} 35... Kf7 {[%clk
0:00:28.9]} 36. exf6 {[%clk 0:00:25.7]} 36... gxf6 {[%clk 0:00:27.5]} 37. Nf4
{[%clk 0:00:22.8]} 37... Ke7 {[%clk 0:00:23.8]} 38. Ne2 {[%clk 0:00:22.5]} 38...
Kd6 {[%clk 0:00:22.7]} 39. f4 {[%clk 0:00:20.2]} 39... e5 {[%clk 0:00:21.4]} 40.
g4 {[%clk 0:00:18.6]} 40... exf4 {[%clk 0:00:15.5]} 41. Nxf4 {[%clk 0:00:18.4]}
41... Nc6 {[%clk 0:00:15.8]} 42. Ne2 {[%clk 0:00:15.1]} 42... b4 {[%clk
0:00:15.8]} 43. axb4 {[%clk 0:00:13.6]} 43... Nxb4+ {[%clk 0:00:16.2]} 44. Kd2
{[%clk 0:00:13.3]} 44... Kc6 {[%clk 0:00:13]} 45. Rf3 {[%clk 0:00:13.1]} 45...
Rc2+ {[%clk 0:00:11.8]} 46. Kd1 {[%clk 0:00:13.4]} 46... Rxb2 {[%clk 0:00:11.6]}
47. Rxf6+ {[%clk 0:00:14]} 47... Kb5 {[%clk 0:00:12.1]} 48. Rxh6 {[%clk
0:00:13.8]} 48... Kc4 {[%clk 0:00:11.6]} 49. Rxb6 {[%clk 0:00:11.3]} 49... Kd3
{[%clk 0:00:11.5]} 50. Nc1+ {[%clk 0:00:09.4]} 50... Kxd4 {[%clk 0:00:11.5]} 51.
h6 {[%clk 0:00:07.8]} 51... Kc3 {[%clk 0:00:08.4]} 52. Rxb4 {[%clk 0:00:01.2]}
52... Rd2+ {[%clk 0:00:06.8]} 0-1

[Event "*** Titled Tuesday Blitz"]
[Site "Chess.com"]
[Date "2021.03.30"]
[Round "3"]
[White "ckgchess"]
[Black "wonderfultime"]
[Result "0-1"]
[WhiteElo "2703"]
[BlackElo "2988"]
[TimeControl "180+1"]
[EndTime "10:29:15 PDT"]
[Termination "wonderfultime won by resignation"]

1. d4 {[%clk 0:03:00.9]} 1... Nf6 {[%clk 0:02:59.6]} 2. Nf3 {[%clk 0:03:01.8]}
2... d5 {[%clk 0:02:57.7]} 3. g3 {[%clk 0:03:02.2]} 3... c6 {[%clk 0:02:57.6]}
4. Bg2 {[%clk 0:02:57.2]} 4... Bf5 {[%clk 0:02:58.1]} 5. O-O {[%clk 0:02:56.7]}
5... e6 {[%clk 0:02:58.7]} 6. c4 {[%clk 0:02:55.5]} 6... Nbd7 {[%clk 0:02:59]}
7. Nc3 {[%clk 0:02:50.8]} 7... dxc4 {[%clk 0:02:58.9]} 8. Nd2 {[%clk 0:02:36.4]}
8... Nb6 {[%clk 0:02:58.3]} 9. e4 {[%clk 0:02:29.7]} 9... Bg4 {[%clk 0:02:58.7]}
10. Nf3 {[%clk 0:02:28.9]} 10... Bb4 {[%clk 0:02:50.2]} 11. Re1 {[%clk
0:02:04.2]} 11... O-O {[%clk 0:02:48.4]} 12. h3 {[%clk 0:02:03.1]} 12... Bh5
{[%clk 0:02:48.5]} 13. g4 {[%clk 0:01:53.5]} 13... Bg6 {[%clk 0:02:48.2]} 14.
Bg5 {[%clk 0:01:54]} 14... Be7 {[%clk 0:02:46.2]} 15. Qe2 {[%clk 0:01:44.3]}
15... Nfd7 {[%clk 0:02:41.7]} 16. Be3 {[%clk 0:01:41.3]} 16... c5 {[%clk
0:02:29.7]} 17. Rad1 {[%clk 0:01:39.6]} 17... cxd4 {[%clk 0:02:29.6]} 18. Bxd4
{[%clk 0:01:21.9]} 18... Qc7 {[%clk 0:02:26.4]} 19. h4 {[%clk 0:01:08.8]} 19...
h6 {[%clk 0:02:21.7]} 20. h5 {[%clk 0:01:07.3]} 20... Bh7 {[%clk 0:02:21.9]} 21.
e5 {[%clk 0:00:53.2]} 21... Nc5 {[%clk 0:02:11.9]} 22. Nb5 {[%clk 0:00:49.8]}
22... Qc8 {[%clk 0:02:04.5]} 23. Nd6 {[%clk 0:00:47.3]} 23... Bxd6 {[%clk
0:02:04.7]} 24. exd6 {[%clk 0:00:48.2]} 24... Nd3 {[%clk 0:02:05.4]} 25. g5
{[%clk 0:00:35.8]} 25... hxg5 {[%clk 0:01:44.9]} 26. Nxg5 {[%clk 0:00:36.7]}
26... Bf5 {[%clk 0:01:45.3]} 27. h6 {[%clk 0:00:32.9]} 27... gxh6 {[%clk
0:01:04.8]} 28. Qh5 {[%clk 0:00:32.8]} 28... f6 {[%clk 0:01:05.4]} 29. Qxh6
{[%clk 0:00:30.2]} 29... Qd7 {[%clk 0:01:05.8]} 30. Bxf6 {[%clk 0:00:30.2]}
30... Rxf6 {[%clk 0:01:06.1]} 31. Qxf6 {[%clk 0:00:31.1]} 31... Rf8 {[%clk
0:01:05.5]} 32. Qh6 {[%clk 0:00:31.4]} 32... e5 {[%clk 0:00:20.6]} 33. Rxd3
{[%clk 0:00:29.7]} 33... cxd3 {[%clk 0:00:19]} 34. Rxe5 {[%clk 0:00:27.5]} 34...
d2 {[%clk 0:00:17.9]} 35. Re7 {[%clk 0:00:28.1]} 35... d1=Q+ {[%clk 0:00:18.1]}
36. Bf1 {[%clk 0:00:28.5]} 36... Qd4 {[%clk 0:00:12.4]} 37. Bh3 {[%clk
0:00:18.1]} 37... Q7xd6 {[%clk 0:00:08.6]} 38. Re6 {[%clk 0:00:15]} 38... Qxe6
{[%clk 0:00:08.1]} 39. Nxe6 {[%clk 0:00:15]} 39... Qf6 {[%clk 0:00:07.4]} 40.
Qxf8+ {[%clk 0:00:11.6]} 40... Qxf8 {[%clk 0:00:07.6]} 41. Nxf8 {[%clk
0:00:12.5]} 41... Bxh3 {[%clk 0:00:08]} 42. Ng6 {[%clk 0:00:13.4]} 42... Be6
{[%clk 0:00:07.7]} 43. b3 {[%clk 0:00:13.3]} 43... Nd5 {[%clk 0:00:08]} 44. Ne5
{[%clk 0:00:12.5]} 44... Nc3 {[%clk 0:00:07.5]} 45. Nd3 {[%clk 0:00:11.4]} 45...
Nxa2 {[%clk 0:00:06.8]} 46. Nc5 {[%clk 0:00:12.3]} 46... Bd5 {[%clk 0:00:07.2]}
47. f4 {[%clk 0:00:13.2]} 47... b6 {[%clk 0:00:07.5]} 48. Nd7 {[%clk 0:00:14]}
48... Bxb3 {[%clk 0:00:07.5]} 49. Kf2 {[%clk 0:00:14.9]} 49... Be6 {[%clk
0:00:07.6]} 50. Ne5 {[%clk 0:00:14]} 50... Nb4 {[%clk 0:00:07.8]} 51. Ke3 {[%clk
0:00:14.6]} 51... Kf8 {[%clk 0:00:07.7]} 52. Kd4 {[%clk 0:00:14.8]} 52... Ke7
{[%clk 0:00:08.3]} 53. Kc3 {[%clk 0:00:14]} 53... a5 {[%clk 0:00:07.5]} 54. Kd4
{[%clk 0:00:08.8]} 54... Kd6 {[%clk 0:00:07.9]} 55. Kc3 {[%clk 0:00:08.3]} 55...
Nd5+ {[%clk 0:00:07.6]} 0-1

[Event "*** Titled Tuesday Blitz"]
[Site "Chess.com"]
[Date "2021.03.30"]
[Round "3"]
[White "szachuspl"]
[Black "Kolle05"]
[Result "1-0"]
[WhiteElo "2551"]
[BlackElo "2368"]
[TimeControl "180+1"]
[EndTime "10:29:15 PDT"]
[Termination "szachuspl won by checkmate"]

1. d4 {[%clk 0:03:00.9]} 1... Nf6 {[%clk 0:02:59.4]} 2. c4 {[%clk 0:03:00.5]}
2... g6 {[%clk 0:02:58.9]} 3. Nc3 {[%clk 0:03:00.1]} 3... Bg7 {[%clk 0:02:59.8]}
4. e4 {[%clk 0:03:00]} 4... d6 {[%clk 0:03:00.5]} 5. Nf3 {[%clk 0:02:59.7]} 5...
O-O {[%clk 0:02:59.5]} 6. Be2 {[%clk 0:03:00.1]} 6... e5 {[%clk 0:02:59.9]} 7.
Be3 {[%clk 0:02:59.7]} 7... Ng4 {[%clk 0:02:58.4]} 8. Bg5 {[%clk 0:02:59.5]}
8... f6 {[%clk 0:02:58.1]} 9. Bh4 {[%clk 0:02:59.6]} 9... g5 {[%clk 0:02:58.5]}
10. Bg3 {[%clk 0:02:59.8]} 10... Nh6 {[%clk 0:02:53.6]} 11. d5 {[%clk
0:02:59.2]} 11... Nf7 {[%clk 0:02:51.9]} 12. Nd2 {[%clk 0:02:58.6]} 12... f5
{[%clk 0:02:45]} 13. exf5 {[%clk 0:02:52.7]} 13... Bxf5 {[%clk 0:02:45.9]} 14.
Bg4 {[%clk 0:02:52.3]} 14... Nh6 {[%clk 0:02:45.4]} 15. Bxf5 {[%clk 0:02:51.4]}
15... Nxf5 {[%clk 0:02:46.3]} 16. O-O {[%clk 0:02:49.7]} 16... Nd7 {[%clk
0:02:44.5]} 17. Nde4 {[%clk 0:02:49.9]} 17... h6 {[%clk 0:02:21.4]} 18. Qd2
{[%clk 0:02:44.8]} 18... a6 {[%clk 0:02:20.5]} 19. f3 {[%clk 0:02:42.2]} 19...
Qe8 {[%clk 0:02:20.6]} 20. Bf2 {[%clk 0:02:41.8]} 20... Qg6 {[%clk 0:02:20.4]}
21. b4 {[%clk 0:02:39.8]} 21... g4 {[%clk 0:02:19.8]} 22. Be3 {[%clk 0:02:07.3]}
22... Kh7 {[%clk 0:02:14.3]} 23. c5 {[%clk 0:01:56.1]} 23... Bh8 {[%clk
0:02:03.6]} 24. cxd6 {[%clk 0:01:53]} 24... cxd6 {[%clk 0:02:04.5]} 25. fxg4
{[%clk 0:01:31.6]} 25... Qxg4 {[%clk 0:02:05.4]} 26. Rf3 {[%clk 0:01:17.3]}
26... Rg8 {[%clk 0:01:05.1]} 27. Raf1 {[%clk 0:01:14.1]} 27... Raf8 {[%clk
0:01:04.9]} 28. g3 {[%clk 0:01:11.1]} 28... Nh4 {[%clk 0:00:56.5]} 29. Rxf8
{[%clk 0:01:10.6]} 29... Rxf8 {[%clk 0:00:57.4]} 30. Rxf8 {[%clk 0:01:08.2]}
30... Nxf8 {[%clk 0:00:58.3]} 31. Qe2 {[%clk 0:01:04.7]} 31... Nf3+ {[%clk
0:00:41.8]} 32. Kg2 {[%clk 0:01:03.2]} 32... Ng6 {[%clk 0:00:41.8]} 33. Nf2
{[%clk 0:00:53.3]} 33... Nfh4+ {[%clk 0:00:24.9]} 34. Kh1 {[%clk 0:00:50.2]}
34... Qxe2 {[%clk 0:00:25.8]} 35. Nxe2 {[%clk 0:00:50.3]} 35... Nf5 {[%clk
0:00:26.7]} 36. Bb6 {[%clk 0:00:48.3]} 36... Nge7 {[%clk 0:00:26.2]} 37. Nc3
{[%clk 0:00:47.7]} 37... e4 {[%clk 0:00:24.8]} 38. Nfxe4 {[%clk 0:00:47.8]}
38... Bxc3 {[%clk 0:00:24.3]} 39. Nxc3 {[%clk 0:00:48.1]} 39... Kg6 {[%clk
0:00:24.2]} 40. Kg2 {[%clk 0:00:47.2]} 40... Kf6 {[%clk 0:00:24.8]} 41. Kf3
{[%clk 0:00:47.7]} 41... Ke5 {[%clk 0:00:25.4]} 42. Be3 {[%clk 0:00:42.4]} 42...
Nxd5 {[%clk 0:00:19.9]} 43. Nxd5 {[%clk 0:00:41.3]} 43... Kxd5 {[%clk
0:00:20.8]} 44. Bf4 {[%clk 0:00:41.8]} 44... Kc4 {[%clk 0:00:20.3]} 45. g4
{[%clk 0:00:42]} 45... Nd4+ {[%clk 0:00:19.6]} 46. Ke4 {[%clk 0:00:41.1]} 46...
d5+ {[%clk 0:00:19.7]} 47. Ke3 {[%clk 0:00:39.1]} 47... Nc2+ {[%clk 0:00:12.6]}
48. Kd2 {[%clk 0:00:39.4]} 48... Nxb4 {[%clk 0:00:13.5]} 49. Bxh6 {[%clk
0:00:35.9]} 49... d4 {[%clk 0:00:12.5]} 50. g5 {[%clk 0:00:35.4]} 50... Nd5
{[%clk 0:00:13]} 51. g6 {[%clk 0:00:35.2]} 51... Ne7 {[%clk 0:00:12]} 52. g7
{[%clk 0:00:34.1]} 52... b5 {[%clk 0:00:07.8]} 53. Bg5 {[%clk 0:00:34.5]} 53...
Ng8 {[%clk 0:00:07.9]} 54. h4 {[%clk 0:00:35]} 54... a5 {[%clk 0:00:08.4]} 55.
h5 {[%clk 0:00:35.6]} 55... b4 {[%clk 0:00:09.1]} 56. h6 {[%clk 0:00:36.1]}
56... a4 {[%clk 0:00:05.9]} 57. h7 {[%clk 0:00:36.5]} 57... b3 {[%clk
0:00:06.3]} 58. hxg8=Q+ {[%clk 0:00:36.7]} 58... Kb4 {[%clk 0:00:06.1]} 59. axb3
{[%clk 0:00:37.6]} 59... axb3 {[%clk 0:00:07]} 60. Qxb3+ {[%clk 0:00:37]} 60...
Kxb3 {[%clk 0:00:07.3]} 61. g8=Q+ {[%clk 0:00:37.9]} 61... Kb2 {[%clk 0:00:07]}
62. Qb8+ {[%clk 0:00:37.1]} 62... Ka3 {[%clk 0:00:05.7]} 63. Be7+ {[%clk
0:00:36]} 63... Ka2 {[%clk 0:00:05.6]} 64. Kc1 {[%clk 0:00:35]} 64... Ka1 {[%clk
0:00:05]} 65. Qb2# {[%clk 0:00:35.9]} 1-0

[Event "*** Titled Tuesday Blitz"]
[Site "Chess.com"]
[Date "2021.03.30"]
[Round "3"]
[White "Keranke"]
[Black "GM_LOADING"]
[Result "1-0"]
[WhiteElo "2790"]
[BlackElo "2524"]
[TimeControl "180+1"]
[EndTime "10:29:17 PDT"]
[Termination "Keranke won on time"]

1. d4 {[%clk 0:03:00.9]} 1... Nf6 {[%clk 0:02:57.9]} 2. c4 {[%clk 0:03:00.7]}
2... e6 {[%clk 0:02:58.1]} 3. g3 {[%clk 0:03:00.2]} 3... Bb4+ {[%clk 0:02:57.4]}
4. Nd2 {[%clk 0:02:59.8]} 4... O-O {[%clk 0:02:52.9]} 5. Bg2 {[%clk 0:03:00]}
5... c5 {[%clk 0:02:53.2]} 6. dxc5 {[%clk 0:02:58.9]} 6... Nc6 {[%clk
0:02:51.2]} 7. Nh3 {[%clk 0:02:58.1]} 7... Bxc5 {[%clk 0:02:50.7]} 8. Nf4 {[%clk
0:02:56.4]} 8... b6 {[%clk 0:02:49.7]} 9. O-O {[%clk 0:02:55.9]} 9... Bb7 {[%clk
0:02:49.8]} 10. b3 {[%clk 0:02:55]} 10... e5 {[%clk 0:02:28.3]} 11. Nd5 {[%clk
0:02:47]} 11... Nxd5 {[%clk 0:02:23]} 12. Bxd5 {[%clk 0:02:47.9]} 12... Qc7
{[%clk 0:02:09.1]} 13. Bb2 {[%clk 0:02:31.3]} 13... Bd4 {[%clk 0:02:05.8]} 14.
Bxd4 {[%clk 0:02:28.4]} 14... Nxd4 {[%clk 0:02:05.8]} 15. Bxb7 {[%clk
0:02:25.2]} 15... Qxb7 {[%clk 0:02:05.6]} 16. e3 {[%clk 0:02:25.8]} 16... Ne6
{[%clk 0:02:03.4]} 17. Qf3 {[%clk 0:02:25.8]} 17... Qc7 {[%clk 0:01:53]} 18. Ne4
{[%clk 0:02:19.6]} 18... Qc6 {[%clk 0:01:49.4]} 19. Qg2 {[%clk 0:02:11.9]} 19...
f5 {[%clk 0:01:31.3]} 20. Nc3 {[%clk 0:02:10.9]} 20... e4 {[%clk 0:01:20.8]} 21.
Nd5 {[%clk 0:02:06.9]} 21... Rae8 {[%clk 0:01:20.8]} 22. Rfd1 {[%clk 0:01:40.5]}
22... Ng5 {[%clk 0:01:20.4]} 23. h4 {[%clk 0:01:37.9]} 23... Nf3+ {[%clk
0:01:20.5]} 24. Kh1 {[%clk 0:01:37.8]} 24... Re6 {[%clk 0:01:17.6]} 25. Qh3
{[%clk 0:01:26.1]} 25... Kh8 {[%clk 0:01:10]} 26. Kg2 {[%clk 0:01:08.2]} 26...
Rh6 {[%clk 0:01:02.3]} 27. Kf1 {[%clk 0:01:04.1]} 27... b5 {[%clk 0:00:37.9]}
28. Rac1 {[%clk 0:01:03.1]} 28... Rd6 {[%clk 0:00:31.4]} 29. Kg2 {[%clk
0:00:42.7]} 29... bxc4 {[%clk 0:00:25.6]} 30. Rxc4 {[%clk 0:00:33.5]} 30... Qa8
{[%clk 0:00:19.1]} 31. Rc5 {[%clk 0:00:28.9]} 31... Rc6 {[%clk 0:00:11.2]} 32.
Rxc6 {[%clk 0:00:25.4]} 32... Qxc6 {[%clk 0:00:10.4]} 33. g4 {[%clk 0:00:22.8]}
33... Qe6 {[%clk 0:00:06.7]} 34. Nf4 {[%clk 0:00:20.7]} 34... Qc6 {[%clk
0:00:03.8]} 35. gxf5 {[%clk 0:00:18.7]} 35... Qc2 {[%clk 0:00:04.1]} 36. Rf1
{[%clk 0:00:17.5]} 36... d5 {[%clk 0:00:04.6]} 37. Qg4 {[%clk 0:00:16.6]} 37...
d4 {[%clk 0:00:05]} 38. Ne6 {[%clk 0:00:16.9]} 38... Rf7 {[%clk 0:00:05.6]} 39.
Ng5 {[%clk 0:00:17]} 39... Nxg5 {[%clk 0:00:04.8]} 40. Qxg5 {[%clk 0:00:17.9]}
40... h6 {[%clk 0:00:03.4]} 41. Qd8+ {[%clk 0:00:17.3]} 41... Kh7 {[%clk
0:00:04]} 42. Qd5 {[%clk 0:00:17]} 42... Rf6 {[%clk 0:00:03]} 43. exd4 {[%clk
0:00:15]} 43... Qd3 {[%clk 0:00:02.8]} 44. Qe5 {[%clk 0:00:13.7]} 44... Qf3+
{[%clk 0:00:03]} 45. Kh2 {[%clk 0:00:13.3]} 45... Rxf5 {[%clk 0:00:03.6]} 46.
Qg3 {[%clk 0:00:13.6]} 46... Qe2 {[%clk 0:00:04.2]} 47. Kg1 {[%clk 0:00:09.5]}
47... Rf6 {[%clk 0:00:02]} 48. Qh3 {[%clk 0:00:07.4]} 48... Rg6+ {[%clk
0:00:01.6]} 49. Kh1 {[%clk 0:00:08]} 49... Rf6 {[%clk 0:00:02.2]} 50. Qg2 {[%clk
0:00:06.8]} 50... Rg6 {[%clk 0:00:02.5]} 51. Qh3 {[%clk 0:00:07.2]} 51... Rf6
{[%clk 0:00:03.1]} 52. Rg1 {[%clk 0:00:07.6]} 52... Rxf2 {[%clk 0:00:03.1]} 53.
Qg3 {[%clk 0:00:07.2]} 1-0

[Event "*** Titled Tuesday Blitz"]
[Site "Chess.com"]
[Date "2021.03.30"]
[Round "3"]
[White "alexrustemov"]
[Black "hypert"]
[Result "1/2-1/2"]
[WhiteElo "2720"]
[BlackElo "2528"]
[TimeControl "180+1"]
[EndTime "10:29:17 PDT"]
[Termination "Game drawn - insufficient material"]

1. d4 {[%clk 0:03:00.9]} 1... d5 {[%clk 0:02:59.5]} 2. c4 {[%clk 0:03:00.5]}
2... c6 {[%clk 0:03:00.1]} 3. Nc3 {[%clk 0:03:00]} 3... Nf6 {[%clk 0:03:00.5]}
4. e3 {[%clk 0:03:00.1]} 4... e6 {[%clk 0:03:00.6]} 5. Nf3 {[%clk 0:03:00.6]}
5... Nbd7 {[%clk 0:03:00.5]} 6. Qc2 {[%clk 0:03:00.8]} 6... Bd6 {[%clk
0:02:59.5]} 7. Bd2 {[%clk 0:03:01]} 7... O-O {[%clk 0:02:53.4]} 8. O-O-O {[%clk
0:03:01.5]} 8... b5 {[%clk 0:02:51]} 9. e4 {[%clk 0:03:01]} 9... b4 {[%clk
0:02:38.7]} 10. e5 {[%clk 0:03:00.8]} 10... bxc3 {[%clk 0:02:38.3]} 11. Bxc3
{[%clk 0:03:01.7]} 11... Be7 {[%clk 0:02:28.4]} 12. exf6 {[%clk 0:03:01.5]}
12... Nxf6 {[%clk 0:02:29.1]} 13. c5 {[%clk 0:02:59.7]} 13... Ne4 {[%clk
0:02:21.9]} 14. Bd3 {[%clk 0:02:57.5]} 14... f5 {[%clk 0:02:21.7]} 15. Ne5
{[%clk 0:02:50.9]} 15... Bd7 {[%clk 0:02:19.1]} 16. f3 {[%clk 0:02:50.5]} 16...
Nxc3 {[%clk 0:02:12.1]} 17. Qxc3 {[%clk 0:02:51.4]} 17... Bf6 {[%clk 0:02:11.3]}
18. Rhe1 {[%clk 0:02:49.9]} 18... Bxe5 {[%clk 0:02:07.6]} 19. Rxe5 {[%clk
0:02:47.8]} 19... Qg5+ {[%clk 0:02:07.9]} 20. Qd2 {[%clk 0:02:46.3]} 20... Qh4
{[%clk 0:02:04.1]} 21. g4 {[%clk 0:01:47.8]} 21... fxg4 {[%clk 0:01:55.2]} 22.
fxg4 {[%clk 0:01:47.8]} 22... g6 {[%clk 0:01:52.6]} 23. Qe3 {[%clk 0:01:35.4]}
23... Qxh2 {[%clk 0:01:41.1]} 24. Rd2 {[%clk 0:01:08.2]} 24... Qf4 {[%clk
0:01:35]} 25. Qxf4 {[%clk 0:01:02.2]} 25... Rxf4 {[%clk 0:01:35]} 26. Be2 {[%clk
0:01:02.7]} 26... a5 {[%clk 0:01:31.2]} 27. Kc2 {[%clk 0:01:01.7]} 27... Rb8
{[%clk 0:01:29.3]} 28. a3 {[%clk 0:00:56.8]} 28... Kg7 {[%clk 0:01:28.9]} 29. b3
{[%clk 0:00:54.9]} 29... Rbf8 {[%clk 0:01:25.8]} 30. Kc3 {[%clk 0:00:49.9]}
30... Rb8 {[%clk 0:01:24.5]} 31. Re3 {[%clk 0:00:49.4]} 31... h6 {[%clk
0:01:20.7]} 32. Rg3 {[%clk 0:00:46.5]} 32... Kf6 {[%clk 0:01:19.5]} 33. g5+
{[%clk 0:00:24.2]} 33... hxg5 {[%clk 0:01:17.2]} 34. Bd3 {[%clk 0:00:24.8]}
34... g4 {[%clk 0:01:09.6]} 35. Rdg2 {[%clk 0:00:24.6]} 35... e5 {[%clk
0:01:05.2]} 36. dxe5+ {[%clk 0:00:22.2]} 36... Kxe5 {[%clk 0:01:05.9]} 37. Bxg6
{[%clk 0:00:22.7]} 37... Rf3+ {[%clk 0:00:56.3]} 38. Rxf3 {[%clk 0:00:16.5]}
38... gxf3 {[%clk 0:00:57.2]} 39. Rh2 {[%clk 0:00:15.9]} 39... Rg8 {[%clk
0:00:50.7]} 40. Bd3 {[%clk 0:00:16.3]} 40... Kf4 {[%clk 0:00:46.3]} 41. Rh7
{[%clk 0:00:15.4]} 41... Bg4 {[%clk 0:00:37.9]} 42. Kd4 {[%clk 0:00:13.8]} 42...
Rb8 {[%clk 0:00:35.1]} 43. Rf7+ {[%clk 0:00:14.1]} 43... Kg3 {[%clk 0:00:34.6]}
44. Kc3 {[%clk 0:00:12.4]} 44... f2 {[%clk 0:00:33.4]} 45. b4 {[%clk 0:00:13]}
45... axb4+ {[%clk 0:00:32.9]} 46. axb4 {[%clk 0:00:13.9]} 46... Ra8 {[%clk
0:00:33.1]} 47. b5 {[%clk 0:00:14.3]} 47... Ra3+ {[%clk 0:00:26.4]} 48. Kd4
{[%clk 0:00:14.3]} 48... Ra4+ {[%clk 0:00:17.3]} 49. Ke5 {[%clk 0:00:14.3]}
49... cxb5 {[%clk 0:00:15.6]} 50. c6 {[%clk 0:00:14.4]} 50... Re4+ {[%clk
0:00:12.7]} 51. Kxd5 {[%clk 0:00:13.7]} 51... Re3 {[%clk 0:00:12]} 52. Bxb5
{[%clk 0:00:13.2]} 52... Re1 {[%clk 0:00:11.7]} 53. c7 {[%clk 0:00:12.1]} 53...
Rd1+ {[%clk 0:00:11]} 54. Kc5 {[%clk 0:00:11.3]} 54... Rc1+ {[%clk 0:00:10.8]}
55. Kd6 {[%clk 0:00:11.3]} 55... Bf3 {[%clk 0:00:09.3]} 56. Rxf3+ {[%clk
0:00:09.7]} 56... Kxf3 {[%clk 0:00:09.3]} 57. Bc6+ {[%clk 0:00:09.7]} 57...
Rxc6+ {[%clk 0:00:09.7]} 58. Kxc6 {[%clk 0:00:10.1]} 58... f1=Q {[%clk
0:00:10.1]} 59. c8=Q {[%clk 0:00:10.7]} 59... Qc4+ {[%clk 0:00:10.2]} 60. Kd7
{[%clk 0:00:11.3]} 60... Qxc8+ {[%clk 0:00:10.5]} 61. Kxc8 {[%clk 0:00:12.1]}
1/2-1/2